Cogmind - Beta 16 @@@ ROGUE MODE // 2025.12.03 @ 01:23:46 Player: AngelSpirit Result: Destroyed by JA-BIW(R) with Subdweller Laser Performance ------------- Evolutions (0) 0 Regions Visited (3) 600 Robots Destroyed (7) 35 Value Destroyed (166) 166 Prototype IDs (0) 0 Alien Tech Used (0) 0 Bonus (0) 0 TOTAL SCORE: 801 Bonus ------- None Cogmind --------- Core Integrity 0/250 Matter 134/300 Energy 19/100 System Corruption 0% Temperature Cool (6) Movement Walking (120) Location -10/Subcaves Parts ------- > --- POWER (1) -------- (None) > --- PROPULSION (2) --- Carbon-fiber Leg Myomer Leg > --- UTILITY (2) ------ Core Shielding > --- WEAPON (2) ------- Beamcaster > --- INVENTORY (5) ---- Small Storage Unit Terrain Scanner Scrap Shield Hacking Suite Peak State ------------ > --- POWER ------------ (None) > --- PROPULSION ------- Myomer Leg > --- UTILITY ---------- Scrap Shield > --- WEAPON ----------- Bore Cannon > --- INVENTORY -------- Small Storage Unit Terrain Scanner Scrap Shield Hacking Suite [Rating: 16] Favorites ----------- Power Light Ion Engine Engine Light Ion Engine Propulsion Wheel Leg Myomer Leg Wheel Wheel Utility Small Storage Unit Device Terrain Scanner Storage Small Storage Unit Protection Core Shielding Weapon Assault Rifle Energy Gun Beamcaster Ballistic Gun Assault Rifle Ballistic Cannon Bore Cannon Build | -11 -10 -10 -10 ------- Run | Yrd Mat Min Sub Slots Evolved . | . . . . Power . | . . . . Propulsion . | . . . . Utility . | . . . . Weapon . | . . . . Parts Attached 14 | 6 2 . 6 Power 1 | 1 . . . Engine 1 | 1 . . . Core . | . . . . Reactor . | . . . . Propulsion 4 | 2 . . 2 Treads . | . . . . Leg 2 | . . . 2 Wheel 2 | 2 . . . Hover . | . . . . Flight . | . . . . Utility 5 | 1 2 . 2 Device 1 | . 1 . . Storage 1 | 1 . . . Processor . | . . . . Hackware . | . . . . Protection 3 | . 1 . 2 Artifact . | . . . . Weapon 4 | 2 . . 2 Energy Gun 1 | . . . 1 Energy Cannon . | . . . . Ballistic Gun 2 | 2 . . . Ballistic Cannon 1 | . . . 1 Launcher . | . . . . Special Weapon . | . . . . Impact Weapon . | . . . . Slashing Weapon . | . . . . Piercing Weapon . | . . . . Special Melee Weapon . | . . . . Unidentified Prototypes . | . . . . Parts Lost 7 | . . . 7 Power 1 | . . . 1 Propulsion 2 | . . . 2 Utility 1 | . . . 1 Weapon 3 | . . . 3 Highest Loss Streak 5 | . . . 5 To Critical Strikes . | . . . . Average Backups 1 | . . 2 3 Power . | . . . . Propulsion . | . . . . Utility 1 | . . 2 3 Weapon . | . . . . Tool/Special . | . . . . Unused Backups 1 | . . . 1 Power . | . . . . Propulsion . | . . . . Utility 1 | . . . 1 Weapon . | . . . . Tool/Special . | . . . . Average Slot Usage (%) 78 | . 89 100 58 Engine 11 | . 14 14 7 Leg 1 | . . . 4 Wheel 22 | . 28 28 12 Device 1 | . 1 . . Storage 9 | . 14 14 2 Protection 6 | . 2 14 12 Ballistic Gun 23 | . 28 28 16 Peak Build Rating 16 | 6 7 7 16 Average Rating 6 | 4 6 7 7 On Entrance 5 | . 6 7 7 Avg Prop Armor Cover (%) . | . . . . Naked Turns 2 | . . . 2 Heaviest Build 25 | 12 13 13 25 Greatest Support 25 | 20 20 20 25 Greatest Overweight (x) 2 | . . . 2 Average Overweight (x) . | . . . . Largest Inventory Capacity 8 | 8 8 8 8 Average Capacity 6 | 7 8 8 5 Most Carried 5 | . 2 2 5 Average Carried 1 | . . 2 3 Final Capacity 8 | 8 8 8 5 Final Carried 5 | . 2 2 5 Class Distribution -------------------- 100% | Mutant Dominant Class ---------------- Mutant | -10/Materials Mutant | -10/Mines Mutant | -10/Subcaves Resources | -11 -10 -10 -10 ----------- Run | Yrd Mat Min Sub Matter Collected 396 | 234 74 . 88 Remotely . | . . . . Salvage Created 203 | . 74 . 129 Parts 13 | . 5 . 8 Haulers Intercepted . | . . . . Recyclers Shooed . | . . . . Parts Field Recycled . | . . . . Retrieved Matter . | . . . . Parts Self-Destructed 4 | . . . 4 Prevented . | . . . . Parts Restored . | . . . . Kills | -11 -10 -10 -10 ------- Run | Yrd Mat Min Sub Combat Hostiles Destroyed 5 | . 1 . 4 Guns 4 | . 1 . 3 Cannons 1 | . . . 1 Classes Destroyed 5 | . 3 . 2 Operator 1 | . 1 . . Watcher 1 | . 1 . . Swarmer 2 | . . . 2 Grunt 1 | . 1 . . Subdweller 2 | . . . 2 Best Kill Streak 3 | . 2 . 3 Combat Bots Only 3 | . 1 . 3 Max Kills in Single Turn 1 | . 1 . 1 Gunslinging . | . . . . Exploded . | . . . . Melee . | . . . . Uniques/NPCs Destroyed . | . . . . Combat | -11 -10 -10 -10 -------- Run | Yrd Mat Min Sub Hostile Shots Fired 99 | . 7 . 92 Missed 21 | . 3 . 18 Hits 78 | . 4 . 74 Projectile 78 | . 4 . 74 Critical Strikes 2 | . . . 2 Actively Blocked 1 | . . . 1 Damage Taken 1358 | . 44 . 1314 Core 253 | . 10 . 243 Absorbed by Shields . | . . . . Redirected to Shielding 44 | . 2 . 42 Core Remaining (%) 100 | 100 . . . Volleys Fired 43 | . 16 . 27 Largest 2 | . 2 . 2 Hottest 75 | . 40 . 75 Shots Fired 70 | . 32 . 38 Gun 62 | . 32 . 30 Cannon 8 | . . . 8 Launcher . | . . . . Special . | . . . . Kinetic 65 | . 32 . 33 Thermal 5 | . . . 5 Explosive . | . . . . Electromagnetic . | . . . . Robot Hit Streak 6 | . 6 . 4 Robot Miss Streak 7 | . 6 . 7 Penetration Max . | . . . . Secondary Targets 2 | . . . 2 Max Gunslinging Chain 1 | . . . 1 Shots Hit Robots 32 | . 12 . 20 Core Hits 9 | . 4 . 5 Critical Kills 1 | . . . 1 Critical Parts Destroyed 1 | . . . 1 Critical Strikes 3 | . . . 3 Destroy 3 | . . . 3 Melee Attacks . | . . . . Impact . | . . . . Slashing . | . . . . Piercing . | . . . . Sneak Attacks . | . . . . Combat Hostiles . | . . . . Follow-up Attacks . | . . . . Damage Inflicted 612 | . 157 . 455 Guns 453 | . 157 . 296 Cannons 159 | . . . 159 Explosions . | . . . . Melee . | . . . . Ramming . | . . . . Kinetic 507 | . 157 . 350 Thermal 105 | . . . 105 Explosive . | . . . . Electromagnetic . | . . . . Impact . | . . . . Slashing . | . . . . Piercing . | . . . . Highest Corruption . | . . . . Average Corruption . | . . . . Corruption Purged . | . . . . Corruption Blocked . | . . . . Overload Shots . | . . . . Overflow Damage . | . . . . Projectiles . | . . . . Explosions . | . . . . Melee . | . . . . Knockbacks 2 | . . . 2 Impact . | . . . . Kinetic 2 | . . . 2 Secondary . | . . . . Self-Inflicted Damage . | . . . . Shots . | . . . . Rammed . | . . . . Targets Rammed . | . . . . Kicked . | . . . . Crushed . | . . . . Highest Temperature 6 | . 6 . . Average Temperature 6 | . 6 . . Received Heat Transfer 270 | . 24 . 246 Siege Activations . | . . . . Martial Activations . | . . . . Shielding Activations . | . . . . Robots Disrupted . | . . . . Combat Hostiles . | . . . . Robots Corrupted . | . . . . Combat Hostiles . | . . . . Parts Fried . | . . . . Impact Corruptions . | . . . . Robots Melted . | . . . . Combat Hostiles . | . . . . Parts Melted . | . . . . Heat Transferred 185 | . . . 185 Parts Sabotaged . | . . . . Parts Stolen . | . . . . Parts Stripped . | . . . . Power Chain Reactions . | . . . . Alert | -11 -10 -10 -10 ------- Run | Yrd Mat Min Sub Maximum Alert Level . | . . . . Low Security (%) 100 | 100 100 100 . Level 1 . | . . . . Level 2 . | . . . . Level 3 . | . . . . Level 4 . | . . . . Level 5 . | . . . . High Security . | . . . . Max Security . | . . . . Peak Influence 30 | . 30 11 . Initial 11 | . . 11 . Average 4 | . 4 6 . Influence Increases 127 | . 77 . 50 Destroy 0b10 Robot/C 60 | . 20 . 40 Destroy 0b10 Robot/NC 10 | . 10 . . Destroy Leader 22 | . 12 . 10 Successful Hack 5 | . 5 . . Lose Combat Pursuer 30 | . 30 . . Influence Decreases 127 | . 47 29 51 Entered New Map 20 | . . 19 1 Time Decay 87 | . 47 10 30 Lost Part 20 | . . . 20 Squads Dispatched 3 | . 3 . . Investigation 1 | . 1 . . Extermination . | . . . . Reinforcement 2 | . 2 . . Assault . | . . . . Garrison . | . . . . Intercept . | . . . . Searches Triggered . | . . . . Construction Impeded . | . . . . Haulers Reinforced . | . . . . Active Scanning Responses . | . . . . Cargo Convoy Interrupts . | . . . . Stealth | -11 -10 -10 -10 --------- Run | Yrd Mat Min Sub Distress Signals 1 | . 1 . . Communications Jammed . | . . . . Distress Signals . | . . . . Times Spotted 24 | . 13 . 11 Peak Tracking Total 9 | . 5 . 9 Tactical Retreats 1 | . 1 . . Traps | -11 -10 -10 -10 ------- Run | Yrd Mat Min Sub Traps Triggered 1 | . 1 . . Indirectly . | . . . . Trap Hack Attempts . | . . . . Triggered . | . . . . Disarmed . | . . . . Reprogrammed . | . . . . Reused . | . . . . Traps Extracted . | . . . . Installed . | . . . . Triggered . | . . . . Machines | -11 -10 -10 -10 ---------- Run | Yrd Mat Min Sub Machines Disabled . | . . . . Max in Single Turn . | . . . . Machines Repaired . | . . . . Machines Dismantled . | . . . . Machines Sabotaged . | . . . . Overloaded Fab Kills . | . . . . Hacking | -11 -10 -10 -10 --------- Run | Yrd Mat Min Sub Machines Accessed 2 | . 2 . . Terminals 2 | . 2 . . Fabricators . | . . . . Repair Stations . | . . . . Recycling Units . | . . . . Scanalyzers . | . . . . Garrison Access . | . . . . Total Hacks 5 | . 5 . . Successful 1 | . 1 . . Failed 4 | . 4 . . Catastrophic 1 | . 1 . . Database Lockouts . | . . . . Manual 2 | . 2 . . Terminals 5 | . 5 . . Fabricators . | . . . . Repair Stations . | . . . . Recycling Units . | . . . . Scanalyzers . | . . . . Garrison Access . | . . . . Terminal Hacks 1 | . 1 . . Zone Layout 1 | . 1 . . Fabricator Hacks . | . . . . Repair Station Hacks . | . . . . Recycling Unit Hacks . | . . . . Scanalyzer . | . . . . Garrison Access Hacks . | . . . . Unauthorized Hacks . | . . . . Terminals . | . . . . Fabricators . | . . . . Repair Stations . | . . . . Recycling Units . | . . . . Scanalyzers . | . . . . Garrison Access . | . . . . Data Cores Recovered . | . . . . Used . | . . . . Hacking Detections 2 | . 2 . . Full Trace Events 1 | . 1 . . Feedback Events . | . . . . Feedback Blocked . | . . . . Robot Schematics Acquired . | . . . . Robots Built . | . . . . Authchips . | . . . . Time . | . . . . Total Robot Build Rating . | . . . . Part Schematics Acquired . | . . . . Parts Built . | . . . . Authchips . | . . . . Time . | . . . . Total Part Build Rating . | . . . . Part Studies Acquired . | . . . . Parts Repaired . | . . . . Time . | . . . . Parts Recycled . | . . . . Recycled Matter . | . . . . Retrieved Matter . | . . . . Retrieved Components . | . . . . Parts Scanalyzed . | . . . . Part Schematics Acquired . | . . . . Parts Damaged . | . . . . Bothacking | -11 -10 -10 -10 ------------ Run | Yrd Mat Min Sub Used RIF Installer . | . . . . Robots Hacked . | . . . . Non-combat . | . . . . Combat . | . . . . Robot Hacks Applied . | . . . . Relay Couplers Released . | . . . . Fabnet Peak Effective % . | . . . . Robots Rewired . | . . . . Allies Hacked . | . . . . Hacks Repelled . | . . . . Allies | -11 -10 -10 -10 -------- Run | Yrd Mat Min Sub Total Allies . | . . . . Largest Group . | . . . . Highest-Rated Group . | . . . . Highest-Rated Ally . | . . . . Total Orders . | . . . . Ally Attacks . | . . . . Total Damage . | . . . . Kills . | . . . . Allies Corrupted . | . . . . Allies Melted . | . . . . Intel | -11 -10 -10 -10 ------- Run | Yrd Mat Min Sub Active Infowar (turns) 48 | . 37 . 11 Terrain 48 | . 37 . 11 Robot Analysis Total . | . . . . Derelict Logs Recovered . | . . . . Drone Launches . | . . . . Drone Recoveries . | . . . . Exploration | -11 -10 -10 -10 ------------- Run | Yrd Mat Min Sub Turns Passed 560 | 39 295 32 194 Spaces Moved 458 | 39 257 23 139 Core 71 | 3 . . 68 Treads . | . . . . Legs 7 | . . . 7 Wheels 380 | 36 257 23 64 Hover . | . . . . Flight . | . . . . Fastest Speed 50 | 50 80 80 50 Average Speed 78 | 77 80 80 74 Slowest Speed 120 | 80 80 80 120 Overloaded Moves . | . . . . Propulsion Burnouts . | . . . . Robots Hopped . | . . . . Potential Cave-ins . | . . . . Cave-ins Triggered . | . . . . Exploration Rate (%) 15 | 4 41 8 7 Regions Visited 3 Branch Regions 2 Pre-discovered Areas . | . . . . Known Exits Taken . | . . . . Unknown Exits Taken 3 | 1 1 1 . Scrap Searched . | . . . . Spaces Dug . | . . . . Terrain Destroyed 2 | . . . 2 Melee . | . . . . Projectile 2 | . . . 2 AOE . | . . . . Terrain Rammed . | . . . . Walls Destroyed . | . . . . Machines Disabled . | . . . . Actions | -11 -10 -10 -10 --------- Run | Yrd Mat Min Sub Total 583 | 44 313 36 190 Wait 58 | . 37 14 7 Move 455 | 38 256 22 139 Hop . | . . . . Pick Up 3 | . 1 . 2 Fast Attach 14 | 6 2 . 6 Attach 2 | . . . 2 Detach 3 | . 1 . 2 Swap 1 | . . . 1 Drop 2 | . . . 2 Fire 43 | . 16 . 27 Melee . | . . . . Ram . | . . . . Kick . | . . . . Crush . | . . . . Escape Stasis . | . . . . Rewire . | . . . . Trap . | . . . . Miscellaneous 2 | . . . 2 Route ------- -11/Scrapyard -10/Materials -10/Mines -10/Subcaves (discovered 1 exit: [*Scr]) History --------- Turn | Location | Event 22 | -11/Scrapyard | Discovered new exit (range 16) 40 | -11/Scrapyard | Entered Materials 266 | -10/Materials | Discovered new exit (range 11) 304 | -10/Materials | Build established: Mutant 335 | -10/Materials | Entered Mines 356 | -10/Mines | Discovered new exit (range 6) 367 | -10/Mines | Entered Subcaves 368 | -10/Subcaves | Approached by a straggling Scientist 436 | -10/Subcaves | Ambushed by swarm of Subdwellers 508 | -10/Subcaves | Lost 5 parts (1p2n2w) 522 | -10/Subcaves | Lost 4 allies 546 | -10/Subcaves | Core integrity fell below 50% 556 | -10/Subcaves | Core integrity fell below 20% 561 | -10/Subcaves | Destroyed by JA-BIW(R) with Subdweller Laser Last Messages --------------- 00529_ H4-S0F(R) suffers critical hit (Destroy). 00531_ Subatomizers dissect the Sub. Power Source. 00531_ H4-S0F(R) knocked back. 00533_ HV Slug penetrates JA-BIW(R). 00533_ JA-BIW(R) suffers critical hit (Destroy). 00533_ Destroyed Sub. Optics. 00533_ JA-BIW(R) knocked back. 00533_ HV Slug penetrates JA-BIW(R). 00539_ Scrap Shield destroyed. 00539_ UG-MSP(R) suffers critical hit (Destroy). 00539_ UG-MSP(R) destroyed. 00543_ Bore Cannon destroyed. 00544_ Subatomizers dissect the Sub. Power Source. 00544_ Acquired Core Shielding. 00547_ Acquired Beamcaster. 00554_ Subatomizers dissect the Sub. Power Source. 00556_ Acquired Carbon-fiber Leg. Map ----- +----------------------------------------------------+ | ?????????????????????????????????????????????????? | | ?????????????????????????????????????????????????? | | ?????????????????????????????????????????????????? | | ?????????????????????????????????????????????????? | | ?????????????????????????????????????????????????? | | ?????????????????????????????????????????????????? | | ?????????????????????????????????????????????????? | | ?????????????????????????????????????????????????? | | ?????????????????????????????????????????????????? | | ?????????????????????????????????????????????????? | | ??????????????????????# "????????????????????????? | | ????????????????????##"""????????????????????????? | | ???????????????????? """"????????????????????????? | | ?????????????????????" ??????????####??????????? | | ????????????????????? ##???????# #??????????? | | ?????????????????????? #??????# " #??????????? | | ??????????????????????# ##???## ###????????? | | ??????????????????????# #??# ???????? | | ??????????????????????# ""### ????????? | | ???????????????????????#%" #; #??????????? | | ??????????????????????## ## ##?????????? | | ??????????????????????# !! %% #????????? | | ??????????????????????#*%* ! % #????????? | | ??????????????????????##%%*### % ??????? | | ??????????????????????#% [#??? "# ??????? | | ??????????????????????##%@##?######??? ???????? | | ??????????????????????##RR#??# #???????????????? | | ???????????????????####=%=#??# #???????????????? | | ???????????????????# *!=#### ##??????????????? | | ???????????????????# [ ## #??????????????? | | ???????????????????# #??????????????? | | ??????????????????#; #??????????????? | | ?????????????????## ### ####??????????????? | | ????????????????## #?## ##????????????????? | | ????????????????# ##?# ##???????????????? | | ????????????????# #### ###?????????????? | | ????????????????## #### ###????##?????? | | ?????????????????# # # #####"##????? | | ?????????????????#### ## ##"" #????? | | ????????????????????# #### ""#?????? | | ????????????????????# ## #### ## ""#?????? | | ????????????????????# ###### ## ### ""##????? | | ????????????????????##?????## ## #?# #????? | | ??????????????????????????## #?## #????? | | ?????????????????????????## # ##??# ##????? | | ?????????????????????????#> ### ##?#""#?????? | | ?????????????????????????# #?## #?## ?????? | | ?????????????????????????# #?# #??# ????? | | ?????????????????????????## #?## #?? ???? | | ??????????????????????????### #??### ##?? #??? | +----------------------------------------------------+ Best States ------------- Heat Dissipation 25 Energy Generation 10 Energy Capacity 125 Matter Stores 274 Matter Capacity 300 Sight Range 16 Terrain Scan Range 14 Terrain Scan Density 10 Armor Coverage 800 Core Shielding 20 Evasion (%) 50 Item Schematics ----------------- None Robot Schematics ------------------ None Fabricated ------------ Nothing Repaired ---------- Nothing Studied --------- None Alien Tech Used ----------------- None Achievements -------------- None Challenges ------------ None Game ------ Seed FissionMetaWarhead Manual? 0 Play Time 00:08:07 Cumulative 145.8 hours Start 2025.12.03 @ 01:16:26 End 2025.12.03 @ 01:23:46 Sessions 1 Manual Loads 0 Difficulty Rogue Special Mode None Game No. 79 Rogue 79 Adventurer 0 Explorer 0 Win Type - Total 1 Types 1/0/0/0/0/0/0/0/0/0 Lore% 66 Gallery% 61 Achievement% 49 Wizard Run 0 Options --------- Layout 1 ASCII 0 Keyboard 0 Movement Mouse Keybinds 0 Fullscreen 2 Font 32/SmallcapsGlow Map View 50x35 Zoom Use 0% Tactical HUD 1 Map Filters NONE Filters NONE Steam 1 RUN: 5bd9a9f0-6c01-4ab0-8056-18851e08382d